bitfinex/quotes_BTCUSD_20250109
["timestamp","ask_amount","ask_price","bid_price","bid_amount"]
[1736434319145,0.215834,92664.0,92657.0,0.02346596]
[1736434319355,0.215826,92667.0,92647.0,0.215871]
[1736434319568,0.215815,92672.0,92661.0,0.02346596]
[1736434319828,0.15,92671.0,92661.0,0.02346596]
[1736434320040,0.04701148,92670.0,92657.0,0.02346596]
[1736434320269,0.15,92669.0,92653.0,0.02346596]
[1736434320473,0.215854,92656.0,92653.0,0.02346596]
[1736434320687,0.215847,92659.0,92648.0,0.02346596]
[1736434320913,0.04701148,92670.0,92640.0,0.02346596]
[1736434320914,0.215869,92649.0,92640.0,0.02346596]
[1736434321129,0.215891,92639.0,92638.0,0.0943075]
[1736434321336,0.215891,92639.0,92622.0,0.02346596]
[1736434321337,0.10429976,92639.0,92627.0,0.0943075]
[1736434321558,0.215915,92629.0,92627.0,0.0943075]
[1736434322015,0.95724406,92629.0,92627.0,0.0943075]
[1736434322457,0.95724406,92629.0,92628.0,0.00032013]
[1736434322665,0.95724406,92629.0,92628.0,0.00015013]
[1736434322889,1.6291565,92629.0,92628.0,0.00015013]
[1736434323104,1.73345626,92629.0,92628.0,1.3e-07]
[1736434323347,1.73345626,92629.0,92606.0,0.0943075]
[1736434323348,0.215966,92607.0,92606.0,0.0943075]
[1736434323572,0.80744566,92607.0,92606.0,0.09480862]
[1736434323789,0.32026576,92607.0,92606.0,0.00050112]
[1736434324992,0.215954,92612.0,92606.0,0.00050112]
[1736434325517,0.005,92629.0,92617.0,0.02346596]
[1736434325723,0.005,92629.0,92626.0,0.02346596]
[1736434326013,0.215901,92635.0,92634.0,0.02346596]
[1736434326159,0.215896,92637.0,92634.0,0.02346596]
[1736434326564,0.215889,92640.0,92634.0,0.02346596]
[1736434327367,0.23112624,92640.0,92634.0,0.02346596]
[1736434327571,0.2159,92636.0,92634.0,0.02346596]
[1736434327985,0.04470262,92635.0,92634.0,0.02346596]
[1736434329155,0.2159,92636.0,92634.0,0.02446596]
[1736434329358,0.2159,92636.0,92634.0,0.02346596]
[1736434329556,0.2159,92636.0,92634.0,0.02446596]
[1736434329995,0.2159,92636.0,92614.0,0.265349]
[1736434329996,0.01523724,92640.0,92637.0,0.02346596]
[1736434330207,0.215852,92656.0,92651.0,0.02346596]
[1736434330441,0.431705,92656.0,92651.0,0.02346596]
[1736434330649,0.215852,92656.0,92651.0,0.02346596]
[1736434331721,0.215852,92656.0,92651.0,0.02446596]
[1736434331929,0.215843,92660.0,92651.0,0.02346596]
[1736434332160,0.15,92662.0,92659.0,0.02346596]
[1736434332372,0.15,92660.0,92659.0,0.02346596]
[1736434333197,0.431646,92669.0,92664.0,0.02346596]
[1736434333404,0.47643665,92669.0,92664.0,0.02346596]
[1736434333745,0.431676,92662.0,92661.0,0.02346596]
[1736434333884,0.431676,92662.0,92659.0,0.002]
[1736434335575,0.365849,92657.0,92651.0,0.02346596]
[1736434335778,0.215885,92642.0,92639.0,0.02346596]
[1736434335981,0.215891,92639.0,92638.0,0.02346596]
[1736434336179,0.215887,92641.0,92638.0,0.02346596]
[1736434336827,0.215854,92655.0,92628.0,0.480834]
[1736434336828,0.215854,92655.0,92653.0,0.02346596]
[1736434337032,0.15,92665.0,92645.0,0.02346596]
[1736434337239,0.215875,92646.0,92643.0,0.02346596]
[1736434337446,0.215887,92641.0,92640.0,0.02346596]
[1736434337872,0.27518881,92664.0,92649.0,0.02346596]
[1736434337873,0.15,92653.0,92649.0,0.02346596]
[1736434338078,0.215843,92660.0,92654.0,0.02346596]
[1736434338281,0.01510209,92664.0,92659.0,0.02346596]
[1736434338459,0.1,92672.0,92659.0,0.02346596]
[1736434338460,0.215835,92663.0,92659.0,0.02346596]
[1736434338669,0.215845,92659.0,92652.0,0.02346596]
[1736434338876,0.1,92672.0,92652.0,0.02346596]
[1736434339082,0.15,92670.0,92653.0,0.02346596]
[1736434339305,0.21585,92657.0,92653.0,0.02346596]
[1736434339517,0.215852,92656.0,92647.0,0.02346596]
[1736434339719,0.15,92668.0,92648.0,0.02346596]
[1736434339923,0.215862,92652.0,92648.0,0.02346596]
[1736434340383,0.215884,92643.0,92636.0,0.082]
[1736434340591,0.215884,92643.0,92642.0,0.02346596]
[1736434340804,0.215897,92637.0,92635.0,0.02346596]
[1736434341014,0.215892,92639.0,92636.0,0.02346596]
[1736434341680,0.215896,92637.0,92636.0,0.02346596]
[1736434342124,0.21591,92631.0,92630.0,0.02346596]
[1736434342765,0.02015038,92638.0,92636.0,0.005]
[1736434342972,0.21591,92631.0,92630.0,0.02346596]
[1736434343178,0.02015038,92638.0,92630.0,0.02346596]
[1736434343391,0.15,92643.0,92642.0,0.02346596]
[1736434343603,0.15,92643.0,92626.0,0.00015024]
[1736434343604,0.215861,92653.0,92652.0,0.02346596]
[1736434344033,0.215852,92656.0,92648.0,0.02346596]
[1736434344240,0.215861,92652.0,92648.0,0.02346596]
[1736434344462,0.215861,92652.0,92651.0,0.02346596]
[1736434345327,0.215856,92654.0,92651.0,0.02346596]
[1736434345750,0.215861,92652.0,92651.0,0.02346596]
[1736434346822,0.431724,92652.0,92648.0,0.02346596]
[1736434347002,0.4748957,92652.0,92648.0,0.02346596]
[1736434347256,0.01496678,92654.0,92642.0,0.02346596]
[1736434347466,0.10429976,92652.0,92644.0,0.02346596]
[1736434347689,0.215877,92645.0,92644.0,0.02346596]
[1736434348205,0.215874,92647.0,92644.0,0.02346596]
[1736434349323,0.215877,92645.0,92644.0,0.002]
[1736434349546,0.215877,92645.0,92631.0,0.02346596]
[1736434349547,0.15,92643.0,92631.0,0.02346596]
[1736434349775,0.21591,92631.0,92628.0,0.02346596]
[1736434349980,0.21591,92631.0,92630.0,0.02346596]
[1736434350264,0.431821,92631.0,92630.0,0.02346596]
[1736434351344,0.24198119,92645.0,92636.0,0.02346596]
[1736434351345,0.0147722,92645.0,92636.0,0.02346596]
[1736434351550,0.15,92640.0,92636.0,0.02346596]
[1736434351753,0.0829,92670.0,92648.0,0.02346596]
[1736434352127,0.14339973,92668.0,92659.0,0.02346596]
[1736434352301,0.14339973,92668.0,92663.0,0.02346596]
[1736434352516,0.01489899,92664.0,92663.0,0.02346596]
[1736434352725,0.215805,92676.0,92668.0,0.02346596]
[1736434352929,0.215805,92676.0,92647.0,0.047]
[1736434352930,0.215805,92676.0,92673.0,0.02346596]
[1736434353146,0.215805,92676.0,92674.0,0.02346596]
[1736434353358,0.21595507,92676.0,92674.0,0.02346596]
[1736434353974,0.21795507,92676.0,92674.0,0.02346596]
[1736434354194,0.02018774,92675.0,92674.0,0.02346596]
[1736434358119,0.21581,92674.0,92668.0,0.02346596]
[1736434358327,0.21581,92674.0,92647.0,0.047]
[1736434358328,0.215833,92665.0,92664.0,0.02346596]
[1736434358481,0.10429976,92673.0,92664.0,0.02346596]
[1736434358681,0.215824,92669.0,92664.0,0.02346596]
[1736434358939,0.215831,92665.0,92664.0,0.02346596]
[1736434359452,0.02018774,92672.0,92671.0,0.02346596]
[1736434363790,0.02018774,92672.0,92671.0,0.02646596]
[1736434363999,0.02018774,92672.0,92671.0,0.02746596]
[1736434364208,0.02018774,92672.0,92671.0,0.02446596]
[1736434364595,0.02018774,92672.0,92671.0,0.02346596]
[1736434364891,0.02018774,92672.0,92653.0,0.0774]
[1736434365103,0.1244875,92672.0,92664.0,0.02346596]
[1736434365311,0.215822,92669.0,92664.0,0.02346596]
[1736434365533,0.02018774,92671.0,92664.0,0.02346596]
[1736434365919,0.215831,92665.0,92664.0,0.02346596]
[1736434366595,0.215777,92688.0,92664.0,0.1]
[1736434366798,0.21977276,92687.0,92664.0,0.10015007]
[1736434367160,0.215831,92665.0,92664.0,0.10215007]
[1736434367500,0.215823,92669.0,92664.0,0.10015007]
[1736434367731,0.215823,92669.0,92664.0,0.00015007]
[1736434368250,0.215823,92669.0,92664.0,0.00115007]
[1736434368625,0.21583,92666.0,92664.0,0.00115007]
[1736434368835,0.215801,92678.0,92674.0,0.1]
[1736434369234,0.215795,92681.0,92674.0,0.1]
[1736434370067,0.215796,92680.0,92674.0,0.1]
[1736434370816,0.215804,92677.0,92670.0,0.0061047]
[1736434370984,0.215804,92677.0,92674.0,0.1]
[1736434371214,0.215804,92677.0,92665.0,0.215831]
[1736434371429,0.215804,92677.0,92664.0,0.10015007]
[1736434371430,0.215804,92677.0,92673.0,0.1]
[1736434371643,0.215811,92674.0,92669.0,0.1]
[1736434371851,0.215811,92674.0,92669.0,0.1061047]
[1736434373680,0.215811,92674.0,92669.0,0.1081047]
[1736434374245,0.215812,92673.0,92669.0,0.101]
[1736434375089,0.215812,92673.0,92669.0,0.1]
[1736434375569,0.01752946,92674.0,92669.0,0.1]
[1736434375833,0.15,92679.0,92673.0,0.1]
[1736434376084,0.15,92679.0,92674.0,0.21581]
[1736434376538,0.01738282,92679.0,92674.0,0.21581]
[1736434376773,0.215761,92696.0,92682.0,0.315789]
[1736434377015,0.01751221,92696.0,92687.0,0.1]
[1736434377222,8.5e-05,92704.0,92695.0,0.1]
[1736434377446,8.5e-05,92704.0,92702.0,0.1]
[1736434377652,0.01773014,92703.0,92702.0,0.1]
[1736434377859,8.51e-05,92703.0,92702.0,0.1061047]
[1736434378087,8.51e-05,92703.0,92702.0,0.25580446]
[1736434378293,8.51e-05,92703.0,92702.0,0.28648616]
[1736434378506,8.51e-05,92703.0,92702.0,0.43648616]
[1736434378718,0.0967108,92715.0,92709.0,0.5623047]
[1736434378922,8.5e-05,92715.0,92714.0,0.5448217]
[1736434379122,8.5e-05,92715.0,92714.0,0.54912146]
[1736434379344,0.00023513,92715.0,92714.0,0.56161146]
[1736434379560,0.00023513,92715.0,92714.0,0.44912146]
[1736434379776,0.00023513,92715.0,92714.0,0.45840146]
[1736434379999,0.00023513,92715.0,92714.0,0.3218217]
[1736434380192,0.00023513,92715.0,92714.0,0.3311017]
[1736434380623,0.00023513,92715.0,92714.0,0.105]
[1736434380839,0.0001412,92715.0,92714.0,0.0111047]
[1736434381047,0.0001412,92715.0,92714.0,0.0061047]
[1736434381257,0.0001412,92715.0,92711.0,0.1]
[1736434381465,0.0001412,92715.0,92714.0,0.013]
[1736434381939,0.0001412,92715.0,92714.0,0.004]
[1736434382744,0.0001412,92715.0,92709.0,0.0061047]
[1736434382745,0.431434,92714.0,92709.0,0.0061047]
[1736434383356,0.215717,92714.0,92710.0,0.0061047]
[1736434383561,0.0001412,92715.0,92710.0,0.0061047]
[1736434383779,0.0001412,92715.0,92714.0,0.1]
[1736434384188,0.0001412,92715.0,92709.0,0.1]
[1736434384478,0.215717,92714.0,92712.0,0.0061047]
[1736434384639,0.0001412,92715.0,92714.0,0.1]
[1736434384998,0.0001412,92715.0,92712.0,0.0061047]
[1736434385200,0.0001412,92715.0,92714.0,0.101]
[1736434385487,0.0001412,92715.0,92712.0,0.0061047]
[1736434385664,0.0001412,92715.0,92714.0,0.1]
[1736434385890,0.215717,92714.0,92712.0,0.0061047]
[1736434386090,0.0001412,92715.0,92710.0,0.1]
[1736434386295,0.431438,92713.0,92704.0,0.1]
[1736434386518,0.215732,92708.0,92700.0,0.1]
[1736434386729,0.215732,92708.0,92705.0,0.1]
[1736434386942,0.0001412,92715.0,92708.0,0.1]
[1736434387154,0.0001412,92715.0,92714.0,0.1]
[1736434387581,0.0001412,92715.0,92714.0,0.1061047]
[1736434387796,0.0001412,92715.0,92714.0,0.23340446]
[1736434388001,0.0001412,92715.0,92714.0,0.46090446]
[1736434388259,0.0001412,92715.0,92714.0,0.56090446]
[1736434388474,0.215608,92761.0,92749.0,0.1]
[1736434388695,0.215608,92761.0,92737.0,0.215662]
[1736434388696,0.01764748,92757.0,92755.0,0.1]
[1736434388914,0.00058563,92758.0,92757.0,0.1061047]
[1736434389131,0.00058563,92758.0,92757.0,0.1]
[1736434389368,0.00058563,92758.0,92757.0,0.1061047]
[1736434390427,0.00058563,92758.0,92757.0,0.1071047]
[1736434390854,0.00058563,92758.0,92757.0,0.1061047]
[1736434391011,0.00058563,92758.0,92757.0,0.1091047]
[1736434391212,0.00058563,92758.0,92757.0,0.1071047]
[1736434391615,0.00058563,92758.0,92757.0,0.1091047]
[1736434391824,0.00058563,92758.0,92757.0,0.1071047]
[1736434392603,0.00058563,92758.0,92757.0,0.21040446]
[1736434392805,0.00058563,92758.0,92757.0,0.21240446]
[1736434393210,0.00058563,92758.0,92757.0,0.21040446]
[1736434393847,0.00058563,92758.0,92757.0,0.21240446]
[1736434394043,0.00058563,92758.0,92757.0,0.21640446]
[1736434394207,0.00058563,92758.0,92757.0,0.21240446]
[1736434394606,0.00058563,92758.0,92757.0,0.21840446]
[1736434394994,0.00058563,92758.0,92757.0,0.1141047]
[1736434396091,0.00058563,92758.0,92757.0,0.21640446]
[1736434396328,0.00058563,92758.0,92757.0,0.21840446]
[1736434396791,0.00058563,92758.0,92757.0,0.21640446]
[1736434396997,0.00058563,92758.0,92757.0,0.21040446]
[1736434397329,0.00058563,92758.0,92757.0,0.21640446]
[1736434397632,0.00058563,92758.0,92757.0,0.21140446]
[1736434398003,0.00058563,92758.0,92757.0,0.21740446]
[1736434398584,0.00058563,92758.0,92757.0,0.21640446]
[1736434398965,0.00058563,92758.0,92757.0,0.1151047]
[1736434399621,0.00058563,92758.0,92757.0,0.109]
[1736434400022,0.00058563,92758.0,92757.0,0.0151047]
[1736434400384,0.00058563,92758.0,92757.0,0.1121047]
[1736434400591,0.00058563,92758.0,92757.0,0.1061047]
[1736434400804,0.00058563,92758.0,92757.0,0.0061047]
[1736434401005,0.00058563,92758.0,92757.0,0.0111047]
[1736434401215,0.00058563,92758.0,92757.0,0.005]
[1736434401423,0.17394531,92758.0,92757.0,0.005]
[1736434401637,0.76459767,92758.0,92757.0,0.005]
[1736434401845,0.215647,92745.0,92736.0,0.1]
[1736434402057,0.215647,92745.0,92738.0,0.0061047]
[1736434402267,0.215647,92745.0,92736.0,0.1]
[1736434402268,0.215647,92744.0,92736.0,0.0061047]
[1736434402479,0.215647,92744.0,92730.0,0.215679]
[1736434402712,0.0215647,92744.0,92735.0,0.1061047]
[1736434402911,0.10429976,92757.0,92742.0,0.0061047]
[1736434402912,0.15,92756.0,92742.0,0.0061047]
[1736434403125,0.215635,92749.0,92742.0,0.0061047]
[1736434403372,0.215646,92745.0,92742.0,0.0061047]
[1736434403566,0.001,92744.0,92742.0,0.0061047]
[1736434403976,0.001,92744.0,92743.0,0.1]
[1736434404184,0.001,92744.0,92743.0,0.3263673]
[1736434404390,0.001,92744.0,92743.0,0.315649]
[1736434404620,0.02105048,92744.0,92743.0,0.315649]
[1736434404825,0.02005048,92744.0,92743.0,0.3217537]
[1736434405901,0.02005048,92748.0,92747.0,0.0061047]
[1736434406098,0.02005048,92748.0,92744.0,0.0061047]
[1736434406301,0.02356765,92747.0,92743.0,0.002]
[1736434406526,0.02005048,92748.0,92738.0,0.0061047]
[1736434408454,0.02005048,92756.0,92755.0,0.3217257]
[1736434408876,0.02005048,92756.0,92755.0,0.42602546]
[1736434409074,0.02005048,92756.0,92755.0,0.32602546]
[1736434409277,0.02005048,92757.0,92756.0,0.1061047]
[1736434409482,0.02005048,92757.0,92756.0,0.21040446]
[1736434410111,0.02005048,92757.0,92756.0,0.23340446]
[1736434410548,0.00058563,92758.0,92757.0,0.2447217]
[1736434410755,0.00058563,92758.0,92757.0,0.34902146]
[1736434411612,0.013871,92767.0,92766.0,0.0061047]
[1736434411824,0.01402103,92767.0,92766.0,0.2217007]
[1736434412033,0.01402103,92767.0,92766.0,0.3217007]
[1736434412234,0.01402103,92767.0,92766.0,0.2217007]
[1736434412432,0.01402103,92767.0,92766.0,0.3217007]
[1736434412639,0.01402103,92767.0,92757.0,0.13329976]
[1736434412640,0.01402103,92767.0,92765.0,0.1]
[1736434412863,0.01402103,92767.0,92766.0,0.0061047]
[1736434413064,0.01402103,92767.0,92759.0,0.0061047]
[1736434413266,0.01402103,92767.0,92761.0,0.0061047]
[1736434413476,0.01402103,92767.0,92763.0,0.1]
[1736434413695,0.01402103,92767.0,92766.0,0.001]
[1736434414132,0.03147244,92767.0,92766.0,0.001]
[1736434414995,0.03147244,92767.0,92766.0,0.003]
[1736434415654,0.03147244,92767.0,92766.0,0.102]
[1736434415868,0.01402103,92767.0,92766.0,0.1081047]
[1736434416765,0.013871,92790.0,92766.0,0.1081047]
[1736434416766,8.51e-05,92808.0,92784.0,0.0061047]
[1736434416969,8.51e-05,92808.0,92802.0,0.215512]
[1736434417175,0.05014995,92803.0,92802.0,0.3216167]
[1736434417581,0.05014995,92803.0,92802.0,0.0061047]
[1736434419682,0.05114995,92803.0,92802.0,0.3216167]
[1736434422742,0.05114995,92803.0,92797.0,0.1]
[1736434422960,0.05114995,92803.0,92802.0,0.0061047]
[1736434423154,0.05114995,92803.0,92795.0,0.215527]
[1736434423356,0.05114995,92803.0,92797.0,0.1]
[1736434423613,0.02668222,92802.0,92792.0,0.0061047]
[1736434423836,0.02668222,92802.0,92791.0,0.0943075]
[1736434423837,0.15,92800.0,92788.0,0.1061047]
[1736434424484,0.15,92798.0,92779.0,0.1]
[1736434424694,0.21555,92786.0,92777.0,0.0061047]
[1736434424902,0.215559,92782.0,92778.0,0.0061047]
[1736434425320,0.2371149,92782.0,92775.0,0.0943075]
[1736434425541,0.215569,92778.0,92766.0,0.0943075]
[1736434425751,0.0215559,92782.0,92766.0,0.1004122]
[1736434425958,0.17011824,92781.0,92766.0,0.0943075]
[1736434426226,0.21558,92773.0,92766.0,0.0943075]
[1736434426403,0.21558,92773.0,92766.0,0.0061047]
[1736434426616,0.17011824,92781.0,92756.0,0.2035475]
[1736434426828,0.13174156,92780.0,92769.0,0.0061047]
[1736434427031,0.13174156,92780.0,92762.0,0.1]
[1736434427032,0.14385271,92773.0,92762.0,0.0061047]
[1736434427234,0.02011824,92781.0,92756.0,0.1035475]
[1736434427235,0.215608,92761.0,92756.0,0.0943075]
[1736434427453,0.10429976,92772.0,92756.0,0.00015003]
[1736434427639,0.215613,92759.0,92756.0,0.00015003]
[1736434428201,0.431226,92759.0,92756.0,0.00015003]
[1736434428403,0.10429976,92772.0,92756.0,0.00015003]
[1736434428404,0.215609,92761.0,92756.0,0.00015003]
[1736434429055,0.15,92763.0,92756.0,0.00015003]
[1736434429267,0.215613,92759.0,92756.0,0.00015003]
[1736434429438,0.53552576,92759.0,92756.0,0.00015003]
[1736434431737,0.15,92758.0,92756.0,0.00015003]
[1736434431950,0.365617,92757.0,92756.0,0.00015003]
[1736434432152,0.46991676,92757.0,92756.0,0.00015003]
[1736434432365,0.57421652,92757.0,92756.0,0.00015003]
[1736434432791,0.65121652,92757.0,92756.0,0.00115003]
[1736434432999,0.54691676,92757.0,92756.0,0.00115003]
[1736434433630,0.54991676,92757.0,92756.0,0.00215003]
[1736434433839,0.02311796,92757.0,92756.0,0.00115003]
[1736434435289,0.02311796,92757.0,92756.0,0.00015003]
[1736434435500,0.02711796,92757.0,92756.0,0.00015003]
[1736434435703,0.06505428,92757.0,92756.0,0.00015003]
[1736434435904,0.06105428,92757.0,92756.0,0.00015003]
[1736434436112,0.02011796,92757.0,92756.0,0.00115003]
[1736434436524,0.02011796,92757.0,92756.0,0.00015003]
[1736434436933,0.02511796,92757.0,92756.0,0.00015003]
[1736434438137,0.02111796,92757.0,92756.0,0.00015003]
[1736434438324,0.02011796,92757.0,92756.0,0.00015003]
[1736434438538,0.02111796,92757.0,92756.0,0.00015003]
[1736434438699,0.02011796,92757.0,92756.0,0.00015003]
[1736434439100,0.02111796,92757.0,92756.0,0.00015003]
[1736434439297,0.06152466,92757.0,92756.0,0.00115003]
[1736434439721,0.06152466,92757.0,92756.0,0.00215003]
[1736434439924,0.06152466,92757.0,92756.0,0.00015003]
[1736434440126,0.06152466,92757.0,92756.0,0.00115003]
[1736434440285,0.76078202,92757.0,92756.0,0.00115003]
[1736434441343,0.50648226,92757.0,92756.0,0.00015003]
[1736434441543,0.02011796,92757.0,92756.0,0.00015003]
[1736434441744,0.02011796,92757.0,92756.0,0.12925473]
[1736434441745,0.02111796,92757.0,92756.0,0.12925473]
[1736434442160,0.02111796,92757.0,92756.0,0.00015003]
[1736434442351,0.17011796,92757.0,92756.0,0.00115003]
[1736434442530,0.17011796,92757.0,92756.0,0.00015003]
[1736434442734,0.76078342,92757.0,92756.0,0.00015003]
[1736434442985,0.78271806,92757.0,92756.0,0.00315003]
[1736434443178,0.78271806,92757.0,92756.0,0.00015003]
[1736434443395,0.76078342,92757.0,92756.0,0.00015003]
[1736434443594,0.76278342,92757.0,92756.0,0.00015003]
[1736434443813,0.76078342,92757.0,92756.0,0.00015003]
[1736434444196,0.76378342,92757.0,92756.0,0.00015003]
[1736434444874,0.65948366,92757.0,92756.0,0.00015003]
[1736434445107,0.17411796,92757.0,92756.0,0.00015003]
[1736434445316,0.02411796,92757.0,92756.0,0.00015003]
[1736434445523,0.02011796,92757.0,92756.0,0.00015003]
[1736434445723,0.82039882,92757.0,92756.0,0.00015003]
[1736434445931,0.76378632,92757.0,92756.0,0.00015003]
[1736434446130,0.76178632,92757.0,92756.0,0.00015003]
[1736434446523,0.76078632,92757.0,92756.0,0.00015003]
[1736434446866,0.76278632,92757.0,92756.0,0.00115003]
[1736434447276,0.60383845,92757.0,92756.0,0.00115003]
[1736434447489,0.70813821,92757.0,92756.0,0.00115003]
[1736434448107,0.70813821,92757.0,92756.0,0.00015003]
[1736434448336,0.49953869,92757.0,92756.0,0.00015003]
[1736434448465,0.50353869,92757.0,92756.0,0.00015003]
[1736434448896,0.49953869,92757.0,92756.0,0.00015003]
[1736434449122,0.50253869,92757.0,92756.0,0.00015003]
[1736434449322,0.50553869,92757.0,92756.0,0.00115003]
[1736434449818,0.02702269,92766.0,92756.0,0.00015003]
[1736434450031,0.21558,92773.0,92762.0,0.215604]
[1736434450786,0.215589,92769.0,92761.0,0.1]
[1736434451003,0.21558,92773.0,92761.0,0.1]
[1736434451424,0.15,92772.0,92761.0,0.1]
[1736434451630,0.15,92770.0,92761.0,0.1]
[1736434451836,0.15,92770.0,92762.0,0.215605]
[1736434452251,0.24260264,92776.0,92772.0,0.21558]
[1736434452252,0.02702964,92776.0,92772.0,0.21558]
[1736434452457,0.02702964,92776.0,92771.0,0.1817]
[1736434452668,0.215545,92788.0,92773.0,0.215579]
[1736434452873,0.431091,92788.0,92774.0,0.215577]
[1736434453089,0.05,92803.0,92781.0,0.1]
[1736434453296,0.215538,92791.0,92781.0,0.1]
[1736434453726,0.15,92790.0,92781.0,0.1]
[1736434454050,0.34202831,92802.0,92781.0,0.1]
[1736434454051,0.215523,92798.0,92781.0,0.1]
[1736434454255,0.002,92788.0,92786.0,0.1]
[1736434454661,0.002,92788.0,92787.0,0.215547]
[1736434455073,0.002,92788.0,92787.0,0.3446517]
[1736434455493,0.002,92788.0,92787.0,0.44895146]
[1736434455896,0.0775656,92803.0,92788.0,0.023]
[1736434456119,0.07771555,92803.0,92798.0,0.2216257]
[1736434456530,0.07771555,92803.0,92798.0,0.0061047]
[1736434456780,0.07771555,92803.0,92798.0,0.2216247]
[1736434456987,0.07771555,92803.0,92800.0,0.1]
[1736434457198,0.07771555,92803.0,92802.0,0.1]
[1736434457576,0.07971555,92803.0,92802.0,0.1]
[1736434457818,0.05214995,92803.0,92802.0,0.123]
[1736434458558,0.05214995,92803.0,92802.0,0.1291047]
[1736434458770,0.05205608,92803.0,92802.0,0.1291047]
[1736434459281,0.05005608,92803.0,92802.0,0.1291047]
[1736434459487,0.05205608,92803.0,92802.0,0.1291047]
[1736434459661,0.05205608,92803.0,92802.0,0.23340446]
[1736434459866,0.05205608,92803.0,92802.0,0.28270446]
[1736434460080,0.05205608,92803.0,92802.0,0.1784047]
[1736434460278,0.05205608,92803.0,92802.0,0.0061047]
[1736434460478,0.04958458,92803.0,92800.0,0.1]
[1736434460681,0.04758458,92803.0,92802.0,0.0061047]
[1736434461080,0.0745935,92803.0,92802.0,0.0151047]
[1736434461384,0.04758458,92803.0,92802.0,0.0151047]
[1736434461798,0.04758458,92803.0,92802.0,0.0191047]
[1736434462199,0.04758458,92803.0,92802.0,0.013]
[1736434462371,0.04758458,92803.0,92801.0,0.0061047]
[1736434462572,0.04758458,92803.0,92802.0,0.0081047]
[1736434462779,0.04758458,92803.0,92802.0,0.002]
[1736434463393,0.04758458,92803.0,92802.0,0.005]
[1736434463599,0.04758458,92803.0,92802.0,0.003]
[1736434464009,0.72770894,92803.0,92802.0,0.003]
[1736434464431,0.68370118,92803.0,92802.0,0.003]
[1736434464638,0.04758458,92803.0,92802.0,0.003]
[1736434465718,0.04758458,92803.0,92797.0,0.0061047]
[1736434466051,0.04958458,92803.0,92797.0,0.0061047]
[1736434466497,0.04758458,92803.0,92797.0,0.0061047]
[1736434466702,0.04758458,92803.0,92802.0,0.003]
[1736434467111,0.26309458,92803.0,92802.0,0.001]
[1736434467839,0.04758458,92803.0,92802.0,0.001]
[1736434468247,0.04758458,92803.0,92797.0,0.0081047]
[1736434468385,0.04758458,92803.0,92797.0,0.0091047]
[1736434468587,0.47860458,92803.0,92797.0,0.003]
[1736434468853,0.47860458,92803.0,92797.0,0.0071047]
[1736434469108,0.26309458,92803.0,92802.0,0.002]
[1736434469328,0.26309458,92803.0,92801.0,0.1]
[1736434469329,0.04758458,92803.0,92801.0,0.1]
[1736434469548,0.04758458,92803.0,92802.0,0.338512]
[1736434469760,0.04758458,92803.0,92802.0,0.3446167]
[1736434470201,0.04858458,92803.0,92802.0,0.3446167]
[1736434470487,0.04858458,92803.0,92802.0,0.44891646]
[1736434470676,0.04758458,92803.0,92802.0,0.44891646]
[1736434472120,0.04758458,92803.0,92802.0,0.45291646]
[1736434472349,0.04758458,92803.0,92802.0,0.44991646]
[1736434472563,0.04758458,92803.0,92802.0,0.45791646]
[1736434472781,0.04758458,92803.0,92802.0,0.46191646]
[1736434473709,0.04758458,92803.0,92802.0,0.3346167]
[1736434473892,0.04758458,92803.0,92802.0,0.328512]
[1736434474188,0.04758458,92803.0,92802.0,0.3346167]
[1736434474422,0.04758458,92803.0,92802.0,0.2346167]
[1736434474895,0.04758458,92803.0,92802.0,0.013]
[1736434475085,0.04758458,92803.0,92802.0,0.0191047]
[1736434475594,0.04758458,92803.0,92802.0,0.0151047]
[1736434475843,0.04758458,92803.0,92802.0,0.0161047]
[1736434476093,0.00014995,92803.0,92802.0,0.0161047]
[1736434476341,0.00014995,92803.0,92802.0,0.1161047]
[1736434476589,0.00014995,92803.0,92802.0,0.1061047]
[1736434476836,0.00014995,92803.0,92802.0,0.1311047]
[1736434477088,0.00014995,92803.0,92802.0,0.1301047]
[1736434477333,0.00014995,92803.0,92802.0,0.1291047]
[1736434477836,0.00014995,92803.0,92802.0,0.23340446]
[1736434478634,0.00014995,92803.0,92802.0,0.23540446]
[1736434479154,0.00014995,92803.0,92802.0,0.24040446]
[1736434479458,0.00014995,92803.0,92802.0,0.23540446]
[1736434479682,0.00014995,92803.0,92802.0,0.24240446]
[1736434479926,0.00014995,92803.0,92802.0,0.23340446]
[1736434480179,0.00014995,92803.0,92802.0,0.23740446]
[1736434480443,0.00014995,92803.0,92802.0,0.24640446]
[1736434480688,0.00014995,92803.0,92802.0,0.23340446]
[1736434480929,0.00014995,92803.0,92802.0,0.24240446]
[1736434481964,0.00014995,92803.0,92802.0,0.62810446]
[1736434482502,9.5e-07,92803.0,92802.0,0.61510446]
[1736434482795,9.5e-07,92803.0,92802.0,0.62910446]
[1736434483815,0.215405,92848.0,92831.0,0.0061047]
[1736434484073,0.00014992,92837.0,92831.0,0.0061047]
[1736434484640,0.00014992,92837.0,92830.0,0.0061047]
[1736434484855,0.00014992,92837.0,92824.0,0.215461]
[1736434485137,0.00014992,92837.0,92824.0,0.315461]
[1736434485626,0.00014992,92837.0,92829.0,0.0061047]
[1736434485868,0.00114992,92837.0,92824.0,0.315461]
[1736434486070,0.00014992,92837.0,92824.0,0.315461]
[1736434486432,0.024832,92837.0,92824.0,0.315461]
[1736434486693,0.00014992,92837.0,92824.0,0.315461]
[1736434487051,0.00014992,92837.0,92830.0,0.0061047]
[1736434487317,0.00014992,92837.0,92824.0,0.315461]
[1736434488370,0.21544,92833.0,92819.0,0.0092]
[1736434488611,0.21544,92833.0,92819.0,0.0061047]
[1736434488612,0.215442,92832.0,92819.0,0.0061047]
[1736434489252,0.21544,92833.0,92819.0,0.0061047]
[1736434489446,0.43089,92831.0,92812.0,0.215487]
[1736434489725,0.215462,92824.0,92812.0,0.215487]
[1736434489946,0.215449,92829.0,92819.0,0.0061047]
[1736434490162,0.215458,92826.0,92819.0,0.0061047]
[1736434490375,0.215458,92826.0,92816.0,0.0061047]
[1736434491114,0.05362068,92825.0,92812.0,0.215487]
[1736434491338,0.215472,92820.0,92808.0,0.215497]
[1736434491548,0.21548,92816.0,92809.0,0.0061047]
[1736434491744,0.215463,92823.0,92810.0,0.215494]
[1736434491981,0.10429976,92822.0,92810.0,0.215494]
[1736434492396,0.02150204,92825.0,92818.0,0.1]